bitfinex-derivatives/quotes_BTCF0:USTF0_20240917
["timestamp","ask_amount","ask_price","bid_price","bid_amount"]
[1726566578242,0.084866,58919.0,58918.0,0.13718585]
[1726566578640,0.084866,58919.0,58918.0,0.13818585]
[1726566580434,0.084866,58919.0,58918.0,0.087667]
[1726566580638,0.184866,58919.0,58918.0,0.087667]
[1726566581240,0.01024412,58920.0,58919.0,0.084866]
[1726566581437,0.00254595,58920.0,58919.0,0.15302183]
[1726566581747,0.00254595,58920.0,58919.0,0.170532]
[1726566582253,0.00254595,58920.0,58919.0,0.085666]
[1726566582548,0.00254595,58920.0,58919.0,0.171532]
[1726566582749,0.00254595,58920.0,58919.0,0.086666]
[1726566583251,0.00254595,58920.0,58919.0,0.09438427]
[1726566583443,0.00254595,58920.0,58919.0,0.09538427]
[1726566583841,0.00254595,58920.0,58919.0,0.28826125]
[1726566584048,0.00254595,58920.0,58919.0,0.37312725]
[1726566584239,0.00254595,58920.0,58919.0,0.20407682]
[1726566584439,0.00254595,58920.0,58919.0,0.28828367]
[1726566584648,0.00254595,58920.0,58919.0,0.37305448]
[1726566585259,0.00254595,58920.0,58919.0,0.18025027]
[1726566585635,0.04636465,58920.0,58919.0,0.18025027]
[1726566593446,0.00254595,58920.0,58919.0,0.26445712]
[1726566594092,0.08741095,58920.0,58919.0,0.17959112]
[1726566594350,0.44821095,58920.0,58919.0,0.07012785]
[1726566594541,0.44821095,58920.0,58919.0,0.05330381]
[1726566594542,0.73281095,58920.0,58919.0,0.05330381]
[1726566594846,0.73281095,58920.0,58919.0,0.0028]
[1726566594847,0.81767595,58920.0,58919.0,0.0028]
[1726566595042,0.81767595,58920.0,58919.0,0.05330381]
[1726566597448,0.73281095,58920.0,58919.0,0.087666]
[1726566598254,0.83281095,58920.0,58919.0,0.087666]
[1726566599153,0.83281095,58920.0,58919.0,0.0028]
[1726566600356,0.87618853,58920.0,58919.0,0.0028]
[1726566600753,0.87618853,58920.0,58919.0,0.087666]
[1726566601060,0.36334595,58920.0,58919.0,0.187666]
[1726566601855,0.44821095,58920.0,58919.0,0.0028]
[1726566602154,0.73665959,58920.0,58919.0,0.0028]
[1726566602668,0.49179459,58920.0,58919.0,0.087666]
[1726566603447,0.40692959,58920.0,58919.0,0.087666]
[1726566603647,0.40692959,58920.0,58919.0,0.332532]
[1726566603856,0.40692959,58920.0,58919.0,0.247666]
[1726566604061,0.36334595,58920.0,58919.0,0.25514587]
[1726566604248,0.04622795,58920.0,58919.0,0.25514587]
[1726566604453,0.00254595,58920.0,58919.0,0.25514587]
[1726566605746,0.00254595,58920.0,58919.0,0.34001187]
[1726566606359,0.00254595,58920.0,58919.0,0.25514587]
[1726566608452,0.00254595,58920.0,58919.0,0.34001187]
[1726566608652,0.00254595,58920.0,58919.0,0.25514587]
[1726566611260,0.00254595,58920.0,58919.0,0.34001187]
[1726566612653,0.00254595,58920.0,58919.0,0.25514587]
[1726566612854,0.00254595,58920.0,58919.0,0.34001187]
[1726566614558,0.084857,58925.0,58924.0,0.084859]
[1726566614771,0.084857,58925.0,58924.0,0.2787116]
[1726566616265,0.084857,58925.0,58924.0,0.2797116]
[1726566616491,0.084857,58925.0,58924.0,0.2807116]
[1726566617362,0.084857,58925.0,58924.0,0.28069218]
[1726566619462,0.004,58931.0,58930.0,0.1697]
[1726566619673,0.08484,58937.0,58930.0,0.63023982]
[1726566619971,0.08484,58937.0,58936.0,0.0008]
[1726566620174,0.67872,58937.0,58936.0,0.0008]
[1726566620357,1.27872,58937.0,58936.0,0.0008]
[1726566620857,1.27872,58937.0,58936.0,0.06821053]
[1726566621272,1.43872,58937.0,58936.0,0.0008]
[1726566621765,1.44622675,58937.0,58936.0,0.0008]
[1726566622464,1.44622675,58937.0,58936.0,0.0018]
[1726566622703,1.44622675,58937.0,58936.0,0.0028]
[1726566623365,1.59999945,58937.0,58936.0,0.0028]
[1726566623568,1.59999945,58937.0,58932.0,0.084847]
[1726566623569,0.084849,58933.0,58932.0,0.084847]
[1726566623769,0.445649,58933.0,58932.0,0.084847]
[1726566623960,0.5994217,58933.0,58932.0,0.084847]
[1726566624463,0.6002217,58933.0,58932.0,0.084847]
[1726566625164,0.5153727,58933.0,58932.0,0.084847]
[1726566625570,0.5163727,58933.0,58932.0,0.085847]
[1726566626071,0.6022187,58933.0,58932.0,0.086847]
[1726566626665,0.54430114,58933.0,58932.0,0.086847]
[1726566628375,0.70430114,58933.0,58932.0,0.002]
[1726566629173,0.54430114,58933.0,58932.0,0.086847]
[1726566629559,0.60315539,58933.0,58932.0,0.086847]
[1726566629971,0.54430114,58933.0,58932.0,0.086847]
[1726566630469,0.448446,58933.0,58932.0,0.086847]
[1726566632472,0.0028,58933.0,58932.0,0.25598431]
[1726566632674,0.0028,58933.0,58932.0,0.27985712]
[1726566633370,0.0028,58933.0,58932.0,0.19501012]
[1726566634969,0.0018,58933.0,58932.0,0.19401012]
[1726566635164,0.0028,58933.0,58932.0,0.19501012]
[1726566635367,0.3636,58933.0,58932.0,0.19501012]
[1726566638479,0.51837747,58933.0,58932.0,0.00195344]
[1726566638673,0.51837747,58933.0,58932.0,0.08680044]
[1726566639568,0.51596334,58933.0,58932.0,0.08680044]
[1726566640580,0.51600243,58933.0,58932.0,0.08680044]
[1726566641179,0.60084843,58933.0,58932.0,0.08680044]
[1726566641877,0.51600243,58933.0,58932.0,0.08680044]
[1726566645277,0.51635324,58933.0,58932.0,0.08680044]
[1726566645479,0.3636,58933.0,58932.0,0.1542759]
[1726566648379,0.3636,58933.0,58932.0,0.08680044]
[1726566648575,0.448446,58933.0,58932.0,0.08680044]
[1726566649082,0.608446,58933.0,58932.0,0.08680044]
[1726566652183,0.693292,58933.0,58932.0,0.00195344]
[1726566652390,0.693292,58933.0,58932.0,0.08680044]
[1726566652592,0.693292,58933.0,58932.0,0.15436237]
[1726566653479,0.76141522,58933.0,58927.0,0.00254483]
[1726566653697,0.2545483,58929.0,58928.0,0.08485]
[1726566653989,0.40751752,58929.0,58928.0,0.08485]
[1726566655088,0.23782222,58929.0,58928.0,0.08485]
[1726566655289,0.23882222,58929.0,58928.0,0.08485]
[1726566656292,0.24082222,58929.0,58928.0,0.08485]
[1726566656692,0.40082222,58929.0,58928.0,0.08485]
[1726566656990,0.40082222,58929.0,58927.0,0.00254483]
[1726566656991,0.169706,58928.0,58927.0,0.00254483]
[1726566657185,0.32267522,58928.0,58927.0,0.00254483]
[1726566657385,0.32307522,58928.0,58927.0,0.08739883]
[1726566658281,0.32607522,58928.0,58927.0,0.08739883]
[1726566659285,0.32807522,58928.0,58927.0,0.08739883]
[1726566659786,0.32528405,58928.0,58927.0,0.08739883]
[1726566659988,0.49497935,58928.0,58927.0,0.08739883]
[1726566660683,0.175106,58928.0,58927.0,0.29804285]
[1726566661296,0.175106,58928.0,58927.0,0.19689227]
[1726566662280,0.175106,58928.0,58927.0,0.29822799]
[1726566663392,0.090253,58928.0,58927.0,0.29822799]
[1726566664590,0.090253,58928.0,58927.0,0.19689227]
[1726566665290,0.090253,58928.0,58927.0,0.29822541]
[1726566666703,0.090253,58928.0,58927.0,0.19689227]
[1726566668395,0.090253,58928.0,58927.0,0.29822725]
[1726566668697,0.090253,58928.0,58927.0,0.19689227]
[1726566669090,0.090253,58928.0,58927.0,0.29822702]
[1726566669293,0.090253,58928.0,58927.0,0.19689227]
[1726566671594,0.090253,58928.0,58927.0,0.29822994]
[1726566671799,0.090253,58928.0,58927.0,0.19689227]
[1726566672401,0.090253,58928.0,58927.0,0.30637403]
[1726566672705,0.090253,58928.0,58927.0,0.19688059]
[1726566673096,0.090253,58928.0,58927.0,0.29821986]
[1726566673431,0.090253,58928.0,58927.0,0.21336586]
[1726566674603,0.090253,58928.0,58927.0,0.1038841]
[1726566674800,0.250253,58928.0,58927.0,0.1038841]
[1726566675012,0.250253,58928.0,58927.0,0.1887381]
[1726566675304,0.090253,58928.0,58927.0,0.29808801]
[1726566675700,0.090253,58928.0,58927.0,0.40744053]
[1726566675904,0.090253,58928.0,58927.0,0.30610126]
[1726566676301,0.090253,58928.0,58927.0,0.19674874]
[1726566683699,0.090253,58928.0,58927.0,0.40756183]
[1726566684700,0.090253,58928.0,58927.0,0.30619991]
[1726566689296,0.090253,58928.0,58927.0,0.19685]
[1726566690797,0.090253,58928.0,58927.0,0.1550078]
[1726566692210,0.0054,58928.0,58927.0,0.1550078]
[1726566695610,0.0054,58928.0,58927.0,0.2550078]
[1726566696816,0.0054,58928.0,58927.0,0.1550078]
[1726566698808,0.0054,58928.0,58927.0,0.19694075]
[1726566700814,0.0054,58928.0,58927.0,0.29694075]
[1726566701609,0.0054,58928.0,58927.0,0.38179475]
[1726566702007,0.0054,58928.0,58927.0,0.29694075]
[1726566703607,0.0054,58928.0,58927.0,0.38179475]
[1726566703814,0.0054,58928.0,58927.0,0.51303733]
[1726566704315,0.0054,58928.0,58927.0,0.29694075]
[1726566705117,0.0054,58928.0,58927.0,0.38179475]
[1726566705610,0.0054,58928.0,58927.0,0.29694075]
[1726566705813,0.0054,58928.0,58927.0,0.33992573]
[1726566706013,0.0054,58928.0,58927.0,0.27225283]
[1726566710719,0.0054,58928.0,58927.0,0.35710683]
[1726566712119,0.0054,58928.0,58927.0,0.27225283]
[1726566712423,0.0054,58928.0,58927.0,0.35710683]
[1726566712630,0.0054,58928.0,58927.0,0.27225283]
[1726566713019,0.0054,58928.0,58927.0,0.35710683]
[1726566713219,0.0054,58928.0,58927.0,0.27225283]
[1726566713822,0.0054,58928.0,58927.0,0.59826387]
[1726566714128,0.36334557,58932.0,58931.0,0.169698]
[1726566714424,0.004,58938.0,58937.0,0.08484]
[1726566714629,0.3608,58939.0,58938.0,0.084839]
[1726566714818,0.3608,58939.0,58938.0,0.19565782]
[1726566715318,0.3608,58939.0,58938.0,0.29708673]
[1726566715517,0.3608,58939.0,58938.0,0.19565782]
[1726566716225,0.3648,58939.0,58938.0,0.19765782]
[1726566716725,0.449637,58939.0,58938.0,0.19765782]
[1726566716925,0.449637,58939.0,58938.0,0.19740018]
[1726566717133,0.3648,58939.0,58938.0,0.19740018]
[1726566718526,0.449637,58939.0,58938.0,0.19740018]
[1726566718928,0.449637,58939.0,58938.0,0.11256118]
[1726566719317,0.449637,58939.0,58938.0,0.1970933]
[1726566719521,0.449637,58939.0,58938.0,0.2819323]
[1726566719729,0.449637,58939.0,58938.0,0.17217112]
[1726566719927,0.449637,58939.0,58938.0,0.087639]
[1726566720322,0.449637,58939.0,58938.0,0.2820263]
[1726566720824,0.449637,58939.0,58938.0,0.087639]
[1726566725021,0.3648,58939.0,58938.0,0.087639]
[1726566725543,0.449637,58939.0,58938.0,0.087639]
[1726566725725,0.3648,58939.0,58938.0,0.087639]
[1726566729033,0.3648,58939.0,58938.0,0.19729768]
[1726566729423,0.3648,58939.0,58938.0,0.19729207]
[1726566730438,0.3648,58939.0,58938.0,0.28213107]
[1726566730623,0.3648,58939.0,58938.0,0.38355998]
[1726566730818,0.3648,58939.0,58938.0,0.28213107]
[1726566732130,0.3608,58939.0,58938.0,0.28013107]
[1726566734036,0.3608,58939.0,58938.0,0.40813107]
[1726566734236,0.3608,58939.0,58938.0,0.40808208]
[1726566734920,0.00254547,58943.0,58942.0,0.084833]
[1726566735120,0.004,58948.0,58947.0,0.169652]
[1726566735322,0.3608,58952.0,58951.0,0.08482]
[1726566735535,0.3608,58952.0,58951.0,0.29522408]
[1726566735725,0.3608,58952.0,58951.0,0.29442408]
[1726566736120,0.3608,58952.0,58951.0,0.19442408]
[1726566736331,0.08482,58951.0,58950.0,0.08442717]
[1726566736532,0.1297,58951.0,58948.0,0.08697164]
[1726566736835,0.004,58957.0,58956.0,0.084813]
[1726566737035,0.2623,58957.0,58956.0,0.084813]
[1726566737225,0.2623,58957.0,58956.0,0.0008]
[1726566737621,0.347111,58957.0,58956.0,0.0008]
[1726566738132,0.347111,58957.0,58956.0,0.15407013]
[1726566738634,0.347111,58957.0,58956.0,0.15507013]
[1726566738635,0.2623,58957.0,58956.0,0.15507013]
[1726566740133,0.2623,58957.0,58956.0,0.16313834]
[1726566740337,0.2623,58957.0,58956.0,0.09568121]
[1726566741437,0.3608,58958.0,58957.0,0.084811]
[1726566741639,0.3608,58963.0,58962.0,0.084804]
[1726566741837,0.3608,58963.0,58962.0,0.085604]
[1726566742041,0.3608,58963.0,58962.0,0.15221837]
[1726566742255,0.3608,58969.0,58962.0,1.1088]
[1726566742434,0.3608,58969.0,58968.0,0.33774261]
[1726566742737,0.3608,58969.0,58968.0,0.185595]
[1726566743244,0.3608,58969.0,58968.0,0.25288696]
[1726566743846,0.3608,58969.0,58968.0,0.185595]
[1726566744143,0.51545773,58969.0,58968.0,0.184795]
[1726566744351,0.51545773,58969.0,58965.0,0.1]
[1726566744539,0.30888324,58968.0,58966.0,0.1]
[1726566744731,0.15465773,58967.0,58966.0,0.1]
[1726566745243,0.23945473,58967.0,58966.0,0.1]
[1726566745748,0.0848,58965.0,58964.0,0.1]
[1726566745936,0.1292018,58965.0,58964.0,0.1]
[1726566746137,0.23945773,58965.0,58964.0,0.1]
[1726566746337,0.40815894,58965.0,58964.0,0.1]
[1726566746532,0.40815894,58965.0,58964.0,0.184801]
[1726566746737,0.40715894,58965.0,58964.0,0.184801]
[1726566747244,0.23845773,58965.0,58964.0,0.184801]
[1726566747550,0.23745773,58965.0,58964.0,0.1]
[1726566747943,0.23745773,58965.0,58964.0,0.184801]
[1726566748144,0.40615894,58965.0,58964.0,0.184801]
[1726566748348,0.23745773,58965.0,58964.0,0.184801]
[1726566748846,0.15465773,58965.0,58964.0,0.184801]
[1726566750036,0.23945773,58965.0,58964.0,0.184801]
[1726566751051,0.0848,58965.0,58964.0,0.1]
[1726566752855,0.0848,58965.0,58964.0,0.184801]
[1726566754153,0.0848,58965.0,58964.0,0.1]
[1726566754355,0.084804,58962.0,58958.0,0.3648]
[1726566754562,0.49698,58969.0,58958.0,0.3608]
[1726566754563,0.0004,58960.0,58958.0,0.3608]
[1726566754743,0.0004,58960.0,58959.0,0.18735199]
[1726566756053,0.004,58967.0,58966.0,0.084798]
[1726566756254,0.0008,58969.0,58966.0,0.1604]
[1726566756459,0.0008,58969.0,58968.0,0.0004]
[1726566756850,0.0008,58969.0,58966.0,0.1604]
[1726566757051,0.0004,58967.0,58966.0,0.245198]
[1726566757251,0.0008,58969.0,58966.0,0.1604]
[1726566757558,0.001,58967.0,58966.0,0.247198]
[1726566758047,0.001,58967.0,58966.0,0.246198]
[1726566758356,0.0008,58969.0,58968.0,0.084795]
[1726566758558,0.0018,58969.0,58968.0,0.084795]
[1726566758854,0.0018,58969.0,58968.0,0.085195]
[1726566759043,0.0018,58969.0,58968.0,0.0004]
[1726566759251,0.004,58975.0,58974.0,0.084787]
[1726566759444,0.004,58983.0,58980.0,0.084778]
[1726566759646,0.1297,58987.0,58982.0,0.1608]
[1726566759956,0.1297,58987.0,58982.0,0.16]
[1726566760158,0.214469,58987.0,58979.0,0.08478]
[1726566760358,0.3608,58983.0,58979.0,0.08478]
[1726566760659,0.3618,58983.0,58980.0,0.001]
[1726566761157,0.3618,58983.0,58982.0,0.001]
[1726566761158,0.3608,58983.0,58982.0,0.001]
[1726566762651,0.445574,58983.0,58982.0,0.001]
[1726566762859,0.084778,58980.0,58977.0,0.084782]
[1726566763071,0.5208,58978.0,58974.0,0.05120605]
[1726566763245,0.5198,58978.0,58974.0,0.0008]
[1726566763855,0.5188,58978.0,58974.0,0.0008]
[1726566764054,0.5178,58978.0,58974.0,0.0008]
[1726566764261,0.084785,58975.0,58974.0,0.0008]
[1726566764453,0.08479,58972.0,58971.0,0.00254306]
[1726566764753,0.0008,58975.0,58971.0,0.44813406]
[1726566764952,0.0008,58975.0,58974.0,0.245587]
[1726566766260,0.04191139,58975.0,58974.0,0.245587]
[1726566766454,0.29572594,58975.0,58974.0,0.245587]
[1726566766958,0.14399675,58975.0,58974.0,0.245587]
[1726566767645,0.19394941,58975.0,58974.0,0.245587]
[1726566768055,0.19394941,58975.0,58974.0,0.085587]
[1726566768258,0.14392323,58975.0,58971.0,0.31321455]
[1726566768453,0.0004,58972.0,58971.0,0.39800555]
[1726566768649,0.0004,58972.0,58971.0,0.084791]
[1726566768650,0.08924364,58972.0,58971.0,0.084791]
[1726566768850,0.14352323,58972.0,58971.0,0.084791]
[1726566769053,0.3293906,58972.0,58971.0,0.084791]
[1726566770247,0.14352323,58972.0,58971.0,0.086791]
[1726566770759,0.14352323,58972.0,58971.0,0.089791]
[1726566771250,0.13812526,58972.0,58971.0,0.089791]
[1726566774147,0.0004,58972.0,58971.0,0.30318328]
[1726566774458,0.0004,58972.0,58971.0,0.20187591]
[1726566774761,0.0004,58972.0,58971.0,0.30318328]
[1726566778267,0.0004,58972.0,58971.0,0.20187591]
[1726566779964,0.0004,58972.0,58971.0,0.28666691]
[1726566780573,0.0004,58972.0,58971.0,0.28656346]
[1726566781168,0.2637,58979.0,58978.0,0.084781]
[1726566781376,0.2637,58979.0,58978.0,0.245181]
[1726566781572,0.1371,58980.0,58979.0,0.08478]
[1726566781869,0.1371,58980.0,58979.0,0.08518]
[1726566782178,0.00254341,58981.0,58980.0,0.084778]
[1726566782360,0.00254341,58981.0,58980.0,0.085178]
[1726566782960,0.00802272,58990.0,58980.0,0.085178]
[1726566782961,0.10148865,58995.0,58980.0,0.49651811]
[1726566783161,0.3959,58997.0,58993.0,0.084759]
[1726566783470,0.084757,58995.0,58991.0,0.084762]
[1726566783785,0.0004,58992.0,58991.0,0.084762]
[1726566784877,0.0004,58992.0,58991.0,0.085762]
[1726566785377,0.001,58995.0,58991.0,1.63036]
[1726566785568,0.004,59003.0,58991.0,1.63036]
[1726566785569,0.001,58992.0,58991.0,1.03032]
[1726566785769,0.001,58992.0,58991.0,0.75971082]
[1726566786076,0.001,58992.0,58991.0,1.800884]
[1726566786467,0.001,58992.0,58991.0,1.86811172]
[1726566786670,0.001,58992.0,58991.0,1.8761122]
[1726566786867,0.001,58992.0,58991.0,1.80788448]
[1726566787171,0.004,59003.0,58999.0,0.084751]
[1726566787372,0.1318,59008.0,58999.0,0.085151]
[1726566787876,1.284749,59000.0,58999.0,0.0004]
[1726566788069,1.444749,59000.0,58999.0,0.0004]
[1726566788266,1.284749,59000.0,58999.0,0.0004]
[1726566789182,1.284749,59000.0,58999.0,0.0054]
[1726566789770,0.08476,58993.0,58992.0,0.0039]
[1726566789969,0.44596,58993.0,58990.0,0.084763]
[1726566790173,0.44096,58993.0,58991.0,0.084762]
[1726566790478,0.084763,58991.0,58988.0,0.0877099]
[1726566790784,0.0004,58989.0,58988.0,0.0877099]
[1726566790971,0.0004,58989.0,58988.0,0.0873099]
[1726566791171,0.0016,58989.0,58988.0,0.0873099]
[1726566791373,0.206161,58992.0,58989.0,0.084765]
[1726566791575,0.206161,58992.0,58991.0,0.0008]
[1726566791972,0.206161,58992.0,58991.0,0.245562]
[1726566792485,0.1214,58992.0,58991.0,0.257562]
[1726566792872,0.1214,58992.0,58991.0,0.249562]
[1726566793581,0.1224,58992.0,58991.0,0.251562]
[1726566793891,0.1234,58992.0,58991.0,0.258562]
[1726566794784,0.208161,58992.0,58991.0,0.256562]
[1726566795080,0.208161,58992.0,58991.0,0.250562]
[1726566795277,0.207161,58992.0,58991.0,0.257562]
[1726566795669,0.207161,58992.0,58991.0,0.250562]
[1726566795872,0.207161,58992.0,58991.0,0.258562]
[1726566796482,0.207161,58992.0,58991.0,0.256562]
[1726566796981,0.207161,58992.0,58991.0,0.257562]
[1726566797672,0.206161,58992.0,58991.0,0.255562]
[1726566798583,0.206161,58992.0,58991.0,0.250562]
[1726566798770,0.206161,58992.0,58991.0,0.254562]
[1726566798969,0.10148865,58996.0,58995.0,0.084757]
[1726566799185,0.48954496,59003.0,58997.0,0.084754]
[1726566799186,0.211153,58998.0,58997.0,0.084754]
[1726566799387,0.211153,58998.0,58997.0,0.085554]
[1726566799591,0.211153,58998.0,58997.0,0.084754]
[1726566799880,0.1264,58998.0,58997.0,0.084754]
[1726566800673,0.1284,58998.0,58997.0,0.084754]
[1726566801187,0.002,58998.0,58997.0,0.084754]
[1726566801487,0.3628,58998.0,58997.0,0.084754]
[1726566802081,0.3628,58998.0,58997.0,0.090754]
[1726566802386,0.10148865,59001.0,58999.0,0.084751]
[1726566802575,0.10148865,59001.0,58999.0,0.245551]
[1726566802576,1.2,59000.0,58999.0,0.245551]
[1726566804182,1.2,59000.0,58999.0,0.248551]
[1726566804685,1.2,59000.0,58999.0,0.694102]
[1726566804892,0.10148865,59001.0,59000.0,0.254247]
[1726566805081,0.004,59009.0,59007.0,0.169478]
[1726566805391,0.11840343,59008.0,59007.0,0.691078]
[1726566805686,0.00254207,59013.0,59012.0,0.084732]
[1726566805888,0.00254207,59013.0,59012.0,0.245532]
[1726566806088,0.3608,59016.0,59012.0,0.1608]
[1726566806275,0.0039,59022.0,59015.0,0.0008]
[1726566806579,0.00644219,59025.0,59017.0,0.16]
[1726566806779,0.3608,59021.0,59017.0,0.16]
[1726566806979,0.13094783,59020.0,59017.0,0.16]
[1726566807179,0.13094783,59020.0,59015.0,0.0008]
[1726566807379,0.3608,59016.0,59015.0,0.0008]
[1726566807587,0.445527,59016.0,59015.0,0.0008]
[1726566807780,0.707127,59016.0,59015.0,0.0008]
[1726566808885,0.702127,59016.0,59015.0,0.0028]
[1726566809388,0.702127,59016.0,59015.0,0.0008]
[1726566810580,0.00054783,59020.0,59019.0,0.084722]
[1726566810788,0.088609,59029.0,59019.0,0.71457305]
[1726566811091,0.128,59025.0,59024.0,0.16]
[1726566811384,0.1358,59028.0,59025.0,0.084713]
[1726566811576,0.04133606,59027.0,59026.0,0.084712]
[1726566811884,0.11840343,59032.0,59026.0,0.084712]
[1726566812083,0.17678272,59031.0,59026.0,0.084712]
[1726566812292,0.04144159,59030.0,59024.0,0.16]
[1726566812475,0.04144159,59029.0,59026.0,0.084712]
[1726566812682,0.397,59030.0,59024.0,0.16]
[1726566812990,0.041466,59029.0,59024.0,0.16]
[1726566813190,0.397,59030.0,59024.0,0.16]
[1726566813490,0.397,59030.0,59029.0,0.0008]
[1726566813791,0.43846057,59030.0,59029.0,0.0008]
[1726566814092,0.084716,59023.0,59022.0,0.00644139]
[1726566814285,0.446316,59023.0,59022.0,0.00254139]
[1726566815381,0.446316,59023.0,59022.0,0.00354139]
[1726566818585,0.3616,59023.0,59022.0,0.00354139]
[1726566818984,0.3616,59023.0,59022.0,0.08825939]
[1726566820075,0.0008,59023.0,59022.0,0.08825939]
[1726566821591,0.3516,59025.0,59022.0,0.08825939]
[1726566821791,0.436314,59025.0,59024.0,0.0008]
[1726566822488,0.0039,59032.0,59031.0,0.16941]
[1726566822696,0.3608,59047.0,59031.0,0.5216]
[1726566822697,0.004,59043.0,59031.0,0.5216]
[1726566822987,0.1285,59044.0,59041.0,0.08469]
[1726566823180,0.1285,59044.0,59040.0,0.16]
[1726566823181,0.1285,59044.0,59043.0,0.0008]
[1726566823591,0.1285,59044.0,59043.0,0.245488]
[1726566824099,0.1285,59044.0,59043.0,0.0008]
[1726566824292,0.213186,59044.0,59043.0,0.0008]
[1726566824977,0.213186,59044.0,59043.0,0.0018]
[1726566825591,0.220186,59044.0,59043.0,0.0018]
[1726566825786,0.1355,59044.0,59043.0,0.0018]
[1726566825987,0.220186,59044.0,59043.0,0.0018]
[1726566826387,0.220186,59044.0,59043.0,0.0028]
[1726566828592,0.220186,59044.0,59043.0,0.1628]
[1726566828996,0.220186,59044.0,59043.0,0.247488]
[1726566830091,0.007,59044.0,59043.0,0.247488]
[1726566830497,0.091686,59044.0,59043.0,0.247488]
[1726566831192,0.091686,59044.0,59043.0,0.246488]
[1726566831392,0.007,59044.0,59043.0,0.247488]
[1726566831891,0.091686,59044.0,59043.0,0.247488]
[1726566832590,0.090686,59044.0,59043.0,0.247488]
[1726566833697,0.18099302,59044.0,59042.0,0.28629991]
[1726566833900,0.1455554,59043.0,59042.0,0.37098891]
[1726566834301,0.2302434,59043.0,59042.0,0.37098891]
[1726566834600,0.26554815,59043.0,59038.0,0.00254066]
[1726566834798,0.084694,59039.0,59038.0,0.00254066]
[1726566835000,0.12648255,59039.0,59038.0,0.08723566]
[1726566835401,0.12648255,59039.0,59038.0,0.00254066]
[1726566835402,0.2302494,59039.0,59038.0,0.00254066]
[1726566835700,0.2292494,59039.0,59038.0,0.00254066]
[1726566836000,0.39776062,59039.0,59038.0,0.00254066]
[1726566836201,0.2292494,59039.0,59038.0,0.00254066]
[1726566836510,0.084698,59036.0,59035.0,0.5218]
[1726566836689,0.084704,59032.0,59031.0,0.244704]
[1726566836894,0.17501102,59032.0,59031.0,0.244704]
[1726566837293,0.30041102,59032.0,59031.0,0.16]
[1726566838404,0.30041102,59032.0,59031.0,0.161]
[1726566838703,0.21570702,59032.0,59031.0,0.245705]
[1726566839304,0.35062043,59032.0,59031.0,0.245705]
[1726566839601,0.21570702,59032.0,59031.0,0.245705]
[1726566840202,0.35062043,59032.0,59031.0,0.245705]
[1726566840503,0.35068915,59032.0,59031.0,0.245705]
[1726566840702,0.26804911,59032.0,59031.0,0.245705]
[1726566840907,0.26804911,59032.0,59031.0,0.244705]
[1726566841402,0.26804911,59032.0,59031.0,0.245705]
[1726566841607,0.26804911,59032.0,59031.0,0.17271321]
[1726566841608,0.1264,59032.0,59031.0,0.17271321]
[1726566841808,0.213599,59035.0,59034.0,0.084701]
[1726566841809,0.128142,59035.0,59034.0,0.084701]
[1726566842102,0.128142,59035.0,59034.0,0.28286116]
[1726566842404,0.212843,59035.0,59034.0,0.08471777]
[1726566842594,0.212843,59035.0,59034.0,0.0008]
[1726566842790,0.212843,59035.0,59034.0,0.06794481]
[1726566842994,0.212843,59035.0,59031.0,0.001]
[1726566842995,0.084701,59034.0,59031.0,0.001]
[1726566843197,0.084704,59032.0,59031.0,0.001]
[1726566844111,0.084704,59032.0,59031.0,0.16]
[1726566844603,0.085704,59032.0,59031.0,0.16]
[1726566845012,0.087304,59032.0,59031.0,0.08391777]
[1726566845800,0.084705,59031.0,59030.0,0.52973158]
[1726566846007,0.084705,59031.0,59030.0,0.6417853]
[1726566846207,0.084705,59031.0,59030.0,0.55755972]
[1726566847095,0.16941,59031.0,59030.0,0.3608]
[1726566847299,0.16941,59031.0,59030.0,0.44501898]
[1726566847806,0.53021,59031.0,59030.0,0.08421898]
[1726566848006,0.53021,59031.0,59028.0,0.08421898]
[1726566848007,0.169416,59029.0,59028.0,0.08421898]
[1726566848201,0.954705,59031.0,59026.0,0.08421898]
[1726566848202,0.169422,59027.0,59026.0,0.08421898]
[1726566848508,0.084711,59027.0,59026.0,0.19656734]
[1726566848699,0.084711,59027.0,59026.0,0.05057707]
[1726566849096,0.084712,59026.0,59025.0,0.084713]
[1726566850306,0.084709,59030.0,59029.0,0.065206]
[1726566850510,0.084709,59030.0,59029.0,0.27657628]
[1726566850803,0.0016,59032.0,59031.0,0.084705]
[1726566851008,0.0016,59032.0,59031.0,0.085105]
[1726566852194,0.0016,59032.0,59031.0,0.086105]
[1726566854001,0.086304,59032.0,59031.0,0.086105]
[1726566854207,0.086304,59032.0,59031.0,0.13665652]
[1726566854409,0.086304,59032.0,59031.0,0.086105]
[1726566854801,0.0016,59032.0,59031.0,0.086105]
[1726566855612,0.086304,59032.0,59031.0,0.086105]
[1726566858312,0.0016,59032.0,59031.0,0.086105]
[1726566859119,0.086304,59032.0,59031.0,0.086105]
[1726566860005,0.171008,59032.0,59031.0,0.0014]
[1726566860305,0.171008,59032.0,59026.0,0.5208]
[1726566860306,0.084711,59027.0,59026.0,0.3608]
[1726566860507,0.085111,59027.0,59026.0,0.3608]
[1726566861016,0.085111,59027.0,59022.0,0.16254139]
[1726566861017,0.084716,59023.0,59022.0,0.24725939]
[1726566861217,0.084116,59023.0,59022.0,0.24725939]
[1726566861714,0.082116,59023.0,59022.0,0.24725939]
[1726566862310,0.082116,59023.0,59022.0,0.24925939]
[1726566862908,0.082116,59023.0,59022.0,0.25025939]
[1726566863914,0.0004,59023.0,59022.0,0.25025939]
[1726566864417,0.0004,59023.0,59022.0,0.25225939]
[1726566864619,0.0004,59023.0,59022.0,0.25625939]
[1726566865113,0.0004,59023.0,59022.0,0.25325939]
[1726566865312,0.0004,59023.0,59022.0,0.24925939]
[1726566865513,0.0004,59023.0,59022.0,0.25125939]
[1726566866019,0.0004,59023.0,59022.0,0.25025939]
[1726566866222,0.0004,59023.0,59022.0,0.25225939]